bitfinex-derivatives/quotes_SOLF0:USTF0_20241105
["timestamp","ask_amount","ask_price","bid_price","bid_amount"]
[1730803077496,3.0976,161.49,161.48,30.68615983]
[1730803077789,1.301,161.55,161.48,38.30259137]
[1730803077986,1.301,161.55,161.49,7.61643154]
[1730803078187,8.91743154,161.55,161.49,7.61643154]
[1730803078388,3.0968,161.53,161.5,3.0972]
[1730803078590,8.91743154,161.55,161.5,3.0972]
[1730803078997,3.097,161.52,161.5,3.0972]
[1730803080697,3.0975,161.5,161.48,24.56004766]
[1730803081492,3.0972,161.51,161.48,27.65764766]
[1730803081691,3.0972,161.51,161.48,3.0976]
[1730803081894,7.61643154,161.52,161.46,2.78]
[1730803081895,7.61643154,161.54,161.5,7.61643154]
[1730803082096,3.0968,161.53,161.5,10.71363154]
[1730803082493,7.61643154,161.54,161.5,10.71363154]
[1730803083090,3.0968,161.53,161.5,10.71363154]
[1730803083295,7.61643154,161.54,161.5,10.71363154]
[1730803083801,3.097,161.52,161.5,10.71363154]
[1730803085497,3.0971,161.51,161.49,3.0975]
[1730803085999,3.0971,161.51,161.49,10.71393154]
[1730803086298,3.0969,161.53,161.5,3.0973]
[1730803087202,3.097,161.52,161.5,3.0973]
[1730803097203,3.0967,161.54,161.51,3.0971]
[1730803097407,3.0967,161.54,161.5,7.61643154]
[1730803097600,8.91743154,161.55,161.5,7.61643154]
[1730803098095,8.91743154,161.55,161.49,7.61643154]
[1730803098296,3.0969,161.53,161.49,10.71383154]
[1730803099412,1.301,161.55,161.49,7.61643154]
[1730803099614,7.61643154,161.54,161.48,2.78]
[1730803099909,7.61643154,161.52,161.48,10.39643154]
[1730803100209,3.0973,161.5,161.48,2.78]
[1730803100504,7.61643154,161.52,161.48,2.78]
[1730803100708,3.0974,161.5,161.48,2.78]
[1730803101499,3.0974,161.5,161.47,7.61643154]
[1730803104308,7.61643154,161.52,161.47,7.61643154]
[1730803104309,3.0976,161.49,161.47,7.61643154]
[1730803105602,3.0976,161.49,161.47,10.71433154]
[1730803105805,3.0976,161.49,161.47,7.61643154]
[1730803106008,3.098,161.47,161.42,1.3118]
[1730803106210,3.098,161.47,161.45,7.61643154]
[1730803106413,7.61643154,161.51,161.45,7.61643154]
[1730803106612,3.0979,161.47,161.45,7.61643154]
[1730803107711,3.0978,161.48,161.45,7.61643154]
[1730803108611,3.0978,161.48,161.45,10.71463154]
[1730803109620,7.61643154,161.51,161.45,10.71463154]
[1730803109813,7.61643154,161.49,161.43,2.78]
[1730803110012,7.61643154,161.48,161.42,10.39643154]
[1730803110408,7.61643154,161.48,161.42,7.61643154]
[1730803110409,3.0986,161.44,161.42,7.61643154]
[1730803110610,7.61643154,161.45,161.41,1.3452]
[1730803110810,7.61643154,161.45,161.4,10.92480154]
[1730803111018,3.0989,161.42,161.4,10.92480154]
[1730803111319,7.61643154,161.45,161.4,10.92480154]
[1730803111822,7.61643154,161.45,161.4,14.02400154]
[1730803112115,1.3718,161.49,161.4,6.40757]
[1730803112314,3.0989,161.42,161.41,7.61643154]
[1730803117722,7.61643154,161.46,161.41,7.61643154]
[1730803117922,3.0988,161.43,161.41,7.61643154]
[1730803120622,3.0985,161.44,161.41,7.61643154]
[1730803120826,7.61643154,161.45,161.41,7.61643154]
[1730803121815,3.0988,161.43,161.41,7.61643154]
[1730803122227,7.61643154,161.46,161.41,7.61643154]
[1730803122524,3.0989,161.42,161.41,7.61643154]
[1730803126031,3.0989,161.42,161.4,13.49563154]
[1730803128830,3.0987,161.43,161.41,3.099]
[1730803129326,7.61643154,161.46,161.4,7.61643154]
[1730803129530,7.61643154,161.43,161.39,2.78]
[1730803129733,7.61643154,161.42,161.37,10.39643154]
[1730803130130,3.0994,161.4,161.37,13.49603154]
[1730803131131,3.0994,161.4,161.37,10.39643154]
[1730803131332,3.0994,161.4,161.38,3.0996]
[1730803136242,3.0992,161.41,161.38,3.0995]
[1730803136446,7.61643154,161.42,161.38,3.0995]
[1730803137144,3.0991,161.41,161.38,10.71593154]
[1730803137339,3.0991,161.41,161.39,7.61643154]
[1730803139343,3.0991,161.41,161.39,10.71573154]
[1730803142747,3.0991,161.41,161.39,3.0993]
[1730803145749,3.0991,161.41,161.36,4.0764]
[1730803145944,3.0991,161.41,161.38,3.0995]
[1730803147450,3.099,161.42,161.39,3.0993]
[1730803147652,3.099,161.42,161.39,7.61643154]
[1730803148152,3.099,161.42,161.4,3.0992]
[1730803152750,7.61643154,161.44,161.37,4.1182]
[1730803152946,3.0991,161.41,161.39,3.0993]
[1730803153962,3.0991,161.41,161.39,10.71573154]
[1730803154153,6.1957,161.48,161.4,3.0992]
[1730803154154,3.099,161.42,161.4,3.0992]
[1730803155246,3.099,161.42,161.39,10.71573154]
[1730803156457,3.0991,161.41,161.39,10.71573154]
[1730803163461,3.0992,161.41,161.39,7.61643154]
[1730803165259,3.0992,161.41,161.39,10.71583154]
[1730803172767,3.0994,161.4,161.38,10.71603154]
[1730803173072,7.61643154,161.43,161.38,7.61643154]
[1730803174273,3.0994,161.4,161.38,7.61643154]
[1730803174660,3.0994,161.4,161.38,10.71603154]
[1730803174964,7.61643154,161.43,161.37,2.78]
[1730803175162,7.61643154,161.43,161.37,10.39643154]
[1730803175669,3.0993,161.4,161.38,7.61643154]
[1730803176569,8.9757,161.48,161.38,7.61643154]
[1730803176774,3.099,161.42,161.39,7.61643154]
[1730803177762,3.099,161.42,161.4,3.0992]
[1730803178775,3.099,161.42,161.39,10.71573154]
[1730803180064,3.099,161.42,161.39,7.61643154]
[1730803180262,3.099,161.42,161.4,3.0992]
[1730803180767,7.61643154,161.45,161.39,7.61643154]
[1730803180968,7.61643154,161.45,161.4,3.0991]
[1730803181368,7.61643154,161.45,161.38,2.78]
[1730803181369,3.0984,161.45,161.43,3.0985]
[1730803182064,3.0984,161.45,161.43,10.71493154]
[1730803182872,3.0984,161.45,161.43,7.61643154]
[1730803183371,3.0984,161.45,161.42,5.8788]
[1730803190679,3.0981,161.47,161.44,3.0985]
[1730803190977,7.61643154,161.48,161.44,3.0985]
[1730803191278,3.0983,161.45,161.43,10.71503154]
[1730803193080,3.0983,161.45,161.43,7.61643154]
[1730803196481,7.61643154,161.47,161.43,7.61643154]
[1730803196681,3.0985,161.44,161.43,7.61643154]
[1730803200580,3.0987,161.43,161.42,2.78]
[1730803201484,7.61643154,161.45,161.39,3.0994]
[1730803201679,3.0991,161.41,161.4,2.78]
[1730803201880,3.0991,161.41,161.39,10.71583154]
[1730803202182,3.0991,161.41,161.39,13.49583154]
[1730803203282,3.0991,161.41,161.39,5.8794]
[1730803203581,7.5183,161.49,161.39,7.61643154]
[1730803203582,3.0992,161.4,161.39,7.61643154]
[1730803205683,3.0991,161.41,161.39,10.71583154]
[1730803207787,2.78,161.47,161.39,7.61643154]
[1730803207987,3.0988,161.43,161.4,7.61643154]
[1730803208178,3.0988,161.43,161.42,7.61643154]
[1730803208883,3.0986,161.44,161.42,7.61643154]
[1730803212392,3.0986,161.44,161.41,5.879]
[1730803212589,3.0986,161.44,161.41,13.49543154]
[1730803212991,3.0989,161.42,161.41,2.78]
[1730803214585,3.0989,161.42,161.4,10.71563154]
[1730803215293,7.61643154,161.44,161.4,7.61643154]
[1730803215488,3.0992,161.41,161.39,2.78]
[1730803215693,7.61643154,161.44,161.39,2.78]
[1730803215891,3.0992,161.4,161.39,2.78]
[1730803216190,7.61643154,161.43,161.38,2.78]
[1730803216494,3.0994,161.39,161.38,7.61643154]
[1730803216995,7.61643154,161.43,161.38,7.61643154]
[1730803217491,3.0992,161.41,161.38,10.71593154]
[1730803217792,7.61643154,161.44,161.38,10.71593154]
[1730803218585,2.78,161.47,161.39,7.61643154]
[1730803218790,2.78,161.47,161.4,7.61643154]
[1730803218993,7.61643154,161.46,161.4,7.61643154]
[1730803219602,3.0984,161.45,161.4,7.61643154]
[1730803219793,7.61643154,161.46,161.4,7.61643154]
[1730803221105,7.61643154,161.46,161.4,10.71563154]
[1730803221705,10.39643154,161.47,161.42,10.71513154]
[1730803221903,7.61643154,161.47,161.42,10.71513154]
[1730803222205,3.0984,161.45,161.42,10.71513154]
[1730803222605,3.0985,161.44,161.42,10.71513154]
[1730803222802,3.0985,161.44,161.42,7.61643154]
[1730803223606,1.3231,161.49,161.43,7.61643154]
[1730803223811,1.3231,161.49,161.45,7.61643154]
[1730803224217,3.098,161.47,161.45,7.61643154]
[1730803225011,3.0983,161.45,161.43,3.0986]
[1730803225215,7.61643154,161.47,161.42,7.61643154]
[1730803225711,3.0986,161.44,161.42,7.61643154]
[1730803226111,3.0986,161.44,161.43,7.61643154]
[1730803226514,3.0984,161.45,161.43,7.61643154]
[1730803227622,11.33808214,161.52,161.44,7.61643154]
[1730803227918,11.33808214,161.52,161.38,8.9063]
[1730803227919,7.61643154,161.53,161.48,7.61643154]
[1730803228120,11.33808214,161.54,161.51,7.61643154]
[1730803228315,7.61643154,161.57,161.51,7.61643154]
[1730803228626,3.0967,161.54,161.51,7.61643154]
[1730803230822,3.0967,161.54,161.51,10.71353154]
[1730803231015,3.0967,161.54,161.51,3.0971]
[1730803231221,3.0967,161.54,161.52,7.61643154]
[1730803232317,12.67054039,161.58,161.53,7.61643154]
[1730803232618,3.0961,161.57,161.54,3.0965]
[1730803232929,3.0961,161.57,161.53,10.37643154]
[1730803232930,31.92937114,161.65,161.55,7.61643154]
[1730803233219,31.92937114,161.65,161.53,2.76]
[1730803233220,3.0956,161.6,161.57,3.0959]
[1730803234025,3.0956,161.6,161.56,10.71253154]
[1730803234226,3.0952,161.61,161.56,10.71253154]
[1730803234419,7.61643154,161.61,161.56,10.71253154]
[1730803234724,4.0825,161.64,161.56,3.0961]
[1730803234725,7.61643154,161.6,161.56,3.0961]
[1730803235324,3.0956,161.59,161.56,3.0961]
[1730803236229,3.096,161.57,161.55,7.61643154]
[1730803236625,3.096,161.57,161.54,10.71283154]
[1730803238025,7.61643154,161.59,161.54,7.61643154]
[1730803238026,3.0959,161.58,161.54,7.61643154]
[1730803238228,7.61643154,161.59,161.54,7.61643154]
[1730803239124,7.61643154,161.63,161.58,7.61643154]
[1730803239323,18.59,161.76,161.61,7.61643154]
[1730803239324,1.3431,161.68,161.61,7.61643154]
[1730803239525,7.61643154,161.66,161.61,7.61643154]
[1730803239725,3.095,161.63,161.61,7.61643154]
[1730803244738,5.4229,161.68,161.59,7.61643154]
[1730803244739,3.0951,161.62,161.59,7.61643154]
[1730803244942,7.61643154,161.63,161.58,13.47203154]
[1730803245141,7.61643154,161.63,161.58,10.37643154]
[1730803245638,7.61643154,161.63,161.59,3.0956]
[1730803245639,3.0952,161.62,161.59,3.0956]
[1730803245943,7.61643154,161.63,161.58,7.61643154]
[1730803246742,3.0955,161.6,161.58,7.61643154]
[1730803248443,7.61643154,161.63,161.51,2.6345]
[1730803248639,7.61643154,161.61,161.55,3.0962]
[1730803248839,7.61643154,161.6,161.56,10.37643154]
[1730803249036,2.76,161.64,161.58,10.71213154]
[1730803249037,3.0953,161.61,161.58,10.71213154]
[1730803250134,3.0956,161.59,161.56,5.8561]
[1730803250338,7.61643154,161.61,161.57,7.61643154]
[1730803250545,7.61643154,161.6,161.55,10.37643154]
[1730803250739,7.61643154,161.6,161.55,7.61643154]
[1730803250933,3.0961,161.57,161.55,7.61643154]
[1730803251138,7.61643154,161.59,161.54,2.76]
[1730803251343,7.61643154,161.59,161.54,10.37643154]
[1730803251745,3.0961,161.57,161.54,13.47283154]
[1730803252042,1.3434,161.62,161.56,7.61643154]
[1730803252232,1.3434,161.62,161.58,7.61643154]
[1730803252439,3.0953,161.61,161.58,7.61643154]
[1730803252839,3.0953,161.61,161.58,10.71223154]
[1730803253041,1.3434,161.62,161.58,7.61643154]
[1730803253234,3.0954,161.6,161.58,7.61643154]
[1730803253439,1.3425,161.67,161.59,7.61643154]
[1730803253635,10.37643154,161.66,161.61,7.61643154]
[1730803253841,3.095,161.63,161.61,7.61643154]
[1730803255540,3.095,161.63,161.6,3.0954]
[1730803255737,3.095,161.63,161.6,10.71183154]
[1730803257651,3.0951,161.62,161.6,7.61643154]
[1730803257852,7.61643154,161.63,161.58,10.37643154]
[1730803258346,3.0953,161.61,161.58,13.47213154]
[1730803258938,3.0953,161.61,161.59,7.61643154]
[1730803260343,3.0951,161.62,161.59,10.71193154]
[1730803264341,3.0949,161.63,161.61,7.61643154]
[1730803264650,7.61643154,161.68,161.62,7.61643154]
[1730803265149,3.0945,161.65,161.62,10.71133154]
[1730803265850,3.0947,161.64,161.62,7.61643154]
[1730803266947,3.095,161.63,161.61,7.61643154]
[1730803267148,7.61643154,161.65,161.61,7.61643154]
[1730803267547,3.095,161.63,161.61,7.61643154]
[1730803268258,4.1034,161.69,161.62,7.61643154]
[1730803268445,3.0948,161.64,161.62,7.61643154]
[1730803268943,7.61643154,161.66,161.62,7.61643154]
[1730803269148,3.095,161.63,161.61,7.61643154]
[1730803270250,3.095,161.63,161.58,2.76]
[1730803270251,7.61643154,161.62,161.52,0.26569]
[1730803270452,1.3434,161.69,161.55,7.61643154]
[1730803270453,6.1894,161.64,161.55,7.61643154]
[1730803270655,4.0857,161.63,161.56,7.61643154]
[1730803271053,3.0957,161.59,161.56,10.71253154]
[1730803271254,7.61643154,161.6,161.55,7.61643154]
[1730803271658,7.61643154,161.57,161.52,9.28932154]
[1730803271862,7.61643154,161.57,161.52,12.04932154]
[1730803272348,7.61643154,161.57,161.52,1.67289]
[1730803272558,7.61643154,161.56,161.52,0.26569]
[1730803273760,3.0967,161.54,161.52,0.26569]
[1730803274770,3.0967,161.53,161.52,0.26569]
[1730803275062,2.76,161.59,161.52,7.88212154]
[1730803275271,2.76,161.59,161.54,7.61643154]
[1730803275272,10.37643154,161.59,161.54,7.61643154]
[1730803275461,3.0961,161.57,161.54,10.71283154]
[1730803275955,7.61643154,161.59,161.54,10.71283154]
[1730803276161,3.0959,161.58,161.54,10.71283154]
[1730803276563,7.61643154,161.6,161.54,10.71283154]
[1730803276765,3.096,161.57,161.54,10.71283154]
[1730803278766,7.61643154,161.62,161.56,3.096]
[1730803278974,7.61643154,161.62,161.57,7.61643154]
[1730803279267,7.61643154,161.61,161.57,7.61643154]
[1730803279776,7.61643154,161.61,161.56,3.096]
[1730803280263,3.0957,161.59,161.56,3.096]
[1730803281366,7.61643154,161.6,161.55,10.37643154]
[1730803281558,7.61643154,161.58,161.55,2.76]
[1730803281957,7.61643154,161.58,161.53,10.71303154]
[1730803282771,3.0961,161.57,161.54,3.0965]
[1730803285069,7.61643154,161.58,161.53,7.61643154]
[1730803285273,7.61643154,161.57,161.52,11.66393154]
[1730803285879,3.0965,161.55,161.52,14.76073154]
[1730803286871,3.0965,161.55,161.53,3.0967]
[1730803287269,3.0961,161.57,161.54,10.71303154]
[1730803288874,7.61643154,161.59,161.54,7.61643154]
[1730803289069,3.0959,161.58,161.55,10.71273154]
[1730803289271,10.37643154,161.6,161.55,7.61643154]
[1730803290582,3.096,161.57,161.55,7.61643154]
[1730803291680,3.096,161.57,161.54,10.71283154]
[1730803296385,3.0959,161.58,161.55,10.71263154]
[1730803299388,3.0956,161.59,161.56,3.0961]
[1730803299786,7.61643154,161.6,161.56,3.0961]
[1730803300386,7.61643154,161.6,161.55,7.61643154]
[1730803300582,7.61643154,161.58,161.53,7.61643154]
[1730803300893,7.61643154,161.57,161.53,2.76]
[1730803301188,3.0962,161.56,161.53,5.8566]
[1730803301593,3.0962,161.56,161.54,3.0965]
[1730803302183,3.0962,161.56,161.53,13.47313154]
[1730803305279,3.0964,161.55,161.53,13.47313154]
[1730803305684,7.61643154,161.58,161.53,13.47313154]
[1730803306187,7.61643154,161.57,161.53,2.76]
[1730803307297,7.61643154,161.56,161.51,7.61643154]
[1730803307481,7.61643154,161.56,161.5,2.76]
[1730803307682,3.0971,161.52,161.49,12.07553154]
[1730803308406,3.0971,161.52,161.5,3.0973]
[1730803309987,4.0005,161.63,161.47,1.3247]
[1730803309988,3.0976,161.49,161.47,1.3247]
[1730803310188,7.61643154,161.51,161.47,1.3247]
[1730803310596,3.0976,161.49,161.47,1.3247]
[1730803310896,7.61643154,161.5,161.46,0.43156]
[1730803311093,3.0978,161.48,161.46,0.43156]
[1730803311791,3.0979,161.47,161.46,0.43156]
[1730803314990,10.71433154,161.47,161.46,0.43156]
[1730803316392,7.61643154,161.47,161.4,13.47553154]
[1730803316594,3.0988,161.43,161.4,10.71553154]
[1730803316797,7.61643154,161.44,161.4,7.61643154]
[1730803316999,7.61643154,161.43,161.38,12.01393154]
[1730803317504,7.61643154,161.43,161.38,10.71593154]
[1730803317702,3.0989,161.42,161.38,10.71593154]
[1730803318106,7.61643154,161.44,161.39,7.61643154]
[1730803318401,3.0988,161.43,161.39,10.71573154]
[1730803318799,3.0988,161.43,161.39,3.0993]
[1730803319000,3.0989,161.42,161.39,3.0993]
[1730803320411,3.0989,161.42,161.4,7.61643154]
[1730803322610,3.0985,161.44,161.41,7.61643154]
[1730803323600,3.0988,161.43,161.37,4.1726]
[1730803323803,3.0988,161.43,161.4,7.61643154]
[1730803325305,3.0988,161.43,161.4,10.71563154]
[1730803325511,3.0984,161.45,161.41,7.61643154]
[1730803325704,7.61643154,161.47,161.37,4.1726]
[1730803326007,3.098,161.47,161.44,3.0983]
[1730803326208,3.098,161.47,161.43,7.61643154]
[1730803326405,3.098,161.47,161.43,10.71493154]
[1730803326607,3.098,161.47,161.43,7.61643154]
[1730803327003,62.29903178,161.48,161.43,10.71493154]
[1730803327203,3.0981,161.46,161.43,10.71493154]
[1730803327504,62.29903178,161.48,161.43,10.71493154]
[1730803327699,62.29903178,161.48,161.43,7.61643154]
[1730803328296,62.29903178,161.48,161.45,3.0982]
[1730803328497,54.68260024,161.48,161.45,3.0982]
[1730803329002,57.78040024,161.48,161.45,3.0982]
[1730803329202,3.0978,161.48,161.45,3.0982]
[1730803329995,10.71383154,161.5,161.46,3.0979]
[1730803330198,7.61643154,161.51,161.46,7.61643154]
[1730803330604,3.0977,161.49,161.45,10.71463154]
[1730803330806,7.61643154,161.5,161.45,7.61643154]
[1730803331210,3.0978,161.48,161.45,10.71473154]
[1730803331409,3.0978,161.48,161.41,2.76]
[1730803331410,7.61643154,161.51,161.46,7.61643154]
[1730803331902,3.0975,161.5,161.46,10.71433154]
[1730803333406,3.0975,161.49,161.46,3.0979]
[1730803334607,3.0975,161.49,161.46,10.71433154]
[1730803336809,10.71393154,161.49,161.46,3.0979]
[1730803337111,3.098,161.47,161.44,3.0983]
[1730803343307,3.098,161.47,161.43,10.37643154]
[1730803343308,7.61643154,161.48,161.43,7.61643154]
[1730803343606,7.61643154,161.48,161.43,2.76]
[1730803344015,3.0982,161.46,161.43,2.76]
[1730803344706,3.0982,161.46,161.43,5.8586]
[1730803344905,3.0983,161.45,161.43,2.76]
[1730803348220,3.0985,161.44,161.42,3.0988]
[1730803348412,7.61643154,161.45,161.41,2.76]
[1730803348612,7.61643154,161.46,161.41,2.76]
[1730803349015,3.0986,161.44,161.42,3.0988]
[1730803349214,3.0986,161.44,161.41,2.76]
[1730803349719,3.0984,161.45,161.41,5.8589]
[1730803349915,7.61643154,161.46,161.41,5.8589]
[1730803350518,3.0986,161.44,161.41,5.8589]
[1730803351118,7.61643154,161.46,161.42,7.61643154]
[1730803351323,3.0983,161.45,161.42,7.61643154]
[1730803351521,7.61643154,161.48,161.43,7.61643154]
[1730803351717,3.098,161.47,161.44,3.0985]
[1730803351917,7.61643154,161.48,161.43,7.61643154]
[1730803352314,3.0982,161.46,161.43,10.71503154]
[1730803352716,7.61643154,161.49,161.44,7.61643154]
[1730803352910,3.0979,161.48,161.45,3.0982]
[1730803353116,7.61643154,161.49,161.45,3.0982]
[1730803353318,7.61643154,161.49,161.44,7.61643154]
[1730803353622,3.0979,161.47,161.44,10.71483154]
[1730803354625,3.0979,161.47,161.45,3.0983]
[1730803355525,7.61643154,161.49,161.44,7.61643154]
[1730803355726,7.61643154,161.5,161.44,7.61643154]
[1730803356220,3.0976,161.49,161.46,3.0981]
[1730803356716,3.0977,161.48,161.45,3.0981]
[1730803356919,3.0977,161.48,161.44,7.61643154]
[1730803357320,3.0977,161.48,161.45,3.0982]
[1730803357618,7.61643154,161.5,161.45,3.0982]
[1730803357619,7.61643154,161.51,161.45,10.37643154]
[1730803357925,7.61643154,161.51,161.46,3.098]
[1730803360430,3.0975,161.49,161.46,3.098]
[1730803361828,3.0974,161.5,161.47,3.0979]
[1730803362126,2.76,161.53,161.45,2.76]
[1730803362127,7.61643154,161.52,161.48,7.61643154]
[1730803362333,7.61643154,161.52,161.48,10.71403154]
[1730803362624,3.0972,161.51,161.48,10.71403154]
[1730803363324,3.097,161.52,161.49,10.71383154]
[1730803363525,7.61643154,161.54,161.49,10.71383154]
[1730803364231,7.61643154,161.54,161.5,3.0972]
[1730803364533,7.61643154,161.54,161.49,10.37643154]
[1730803365527,3.0968,161.53,161.5,3.0972]
[1730803366042,3.0971,161.51,161.49,2.76]
[1730803366337,7.61643154,161.52,161.49,2.76]
[1730803366829,7.61643154,161.5,161.44,7.61643154]
[1730803367033,7.61643154,161.49,161.45,2.76]
[1730803367533,10.71403154,161.49,161.46,3.098]
[1730803371039,7.61643154,161.49,161.45,2.76]
[1730803371427,7.61643154,161.5,161.45,2.76]
[1730803372331,3.0976,161.49,161.46,3.0981]
[1730803374222,10.71403154,161.49,161.46,3.0981]
[1730803378441,7.61643154,161.49,161.44,10.37643154]
[1730803378746,3.0979,161.47,161.44,13.47473154]
[1730803379641,3.0979,161.47,161.42,2.76]
[1730803379642,7.61643154,161.47,161.42,2.76]
[1730803380145,3.0986,161.44,161.42,2.76]
[1730803380339,7.61643154,161.47,161.41,10.71533154]
[1730803380543,7.61643154,161.44,161.4,3.0991]
[1730803380737,7.61643154,161.44,161.39,12.97413154]
[1730803380938,7.61643154,161.46,161.41,7.61643154]
[1730803381138,7.61643154,161.45,161.41,10.71533154]
[1730803381343,3.0989,161.42,161.4,7.61643154]
[1730803381763,7.61643154,161.45,161.4,10.71553154]
[1730803382851,3.0988,161.43,161.4,10.71553154]
[1730803386245,2.76,161.48,161.43,3.0985]
[1730803386246,7.61643154,161.48,161.43,3.0985]
[1730803386753,7.61643154,161.47,161.43,3.0985]
[1730803388351,3.0982,161.46,161.43,3.0985]
[1730803396857,3.0982,161.46,161.4,1.3378]
[1730803397057,3.0984,161.45,161.4,8.95423154]
[1730803397263,3.0984,161.45,161.41,7.61643154]
[1730803397962,3.0984,161.45,161.42,3.0987]
[1730803405368,10.71483154,161.45,161.42,3.0987]
[1730803405666,3.0985,161.44,161.42,3.0987]
[1730803417183,3.0985,161.44,161.41,5.8589]
[1730803421082,3.0984,161.45,161.41,10.37643154]
[1730803421478,3.0984,161.45,161.42,3.0988]
[1730803422481,3.0981,161.46,161.44,3.0985]
[1730803424280,10.71453154,161.46,161.43,3.0986]
[1730803436689,3.0983,161.45,161.43,3.0986]
[1730803447097,7.61643154,161.46,161.43,3.0986]
[1730803447302,3.0982,161.46,161.43,10.71503154]
[1730803448790,11.33870744,161.5,161.43,7.61643154]
[1730803448994,1.3573,161.51,161.47,7.61643154]
[1730803449393,1.3573,161.51,161.46,2.76]
[1730803449394,7.61643154,161.49,161.46,2.76]
[1730803449595,3.0979,161.47,161.46,2.76]
[1730803449893,7.61643154,161.47,161.42,5.84275401]
[1730803450097,7.61643154,161.45,161.42,5.84275401]
[1730803450494,7.61643154,161.44,161.4,2.76]
[1730803450694,3.0987,161.43,161.4,5.8591]
[1730803451500,3.0987,161.43,161.41,3.099]
[1730803454496,3.0988,161.43,161.4,5.8591]
[1730803454998,3.0988,161.43,161.4,2.76]
[1730803455299,3.0988,161.43,161.41,3.099]
[1730803469905,2.76,161.48,161.42,7.61643154]
[1730803470107,7.61643154,161.48,161.43,7.61643154]
[1730803470310,24.0494662,161.51,161.44,7.61643154]
[1730803470611,18.9709688,161.5,161.46,3.098]
[1730803470809,7.61643154,161.5,161.46,3.098]
[1730803471011,3.0977,161.48,161.45,10.71463154]
[1730803472101,3.0977,161.48,161.45,3.0982]
[1730803472303,10.71413154,161.48,161.45,3.0982]
[1730803472809,3.0978,161.48,161.45,3.0982]
[1730803473916,7.61643154,161.48,161.44,2.76]
[1730803474107,3.0979,161.47,161.44,2.76]
[1730803474505,3.0979,161.47,161.44,5.8584]
[1730803478417,3.0979,161.47,161.45,3.0983]
[1730803478616,7.61643154,161.5,161.45,7.61643154]
[1730803478819,7.61643154,161.51,161.46,7.61643154]
[1730803479111,7.61643154,161.51,161.47,3.0978]
[1730803480013,3.0976,161.49,161.47,3.0978]
[1730803483508,3.0975,161.5,161.47,3.0978]
[1730803483716,7.61643154,161.51,161.47,3.0978]
[1730803485417,3.0975,161.49,161.47,3.0978]
[1730803485814,3.0972,161.51,161.48,10.71403154]
[1730803486720,3.0973,161.5,161.47,3.0978]
[1730803486922,7.61643154,161.51,161.45,1.3553]
[1730803487118,7.61643154,161.51,161.46,7.61643154]
[1730803487313,3.0974,161.5,161.47,3.0979]
[1730803489126,3.0975,161.49,161.47,3.0979]
[1730803490724,3.0974,161.5,161.47,3.0979]
[1730803491130,3.0974,161.5,161.48,7.61643154]
[1730803492222,3.0974,161.5,161.48,10.71413154]
[1730803492424,3.0972,161.51,161.48,10.71413154]
[1730803492814,11.35163487,161.54,161.49,3.0975]
[1730803493019,3.0971,161.52,161.49,3.0975]
[1730803493225,7.61643154,161.54,161.49,3.0975]
[1730803494326,3.0972,161.51,161.48,10.71403154]
[1730803494521,7.61643154,161.54,161.48,13.47403154]
[1730803495130,3.0972,161.51,161.48,13.47403154]
[1730803505539,3.0972,161.51,161.49,3.0975]
[1730803507731,57.42082762,161.56,161.5,7.61643154]
[1730803507732,54.66082762,161.56,161.5,7.61643154]
[1730803507933,54.66082762,161.56,161.54,7.61643154]
[1730803508122,1.2834,161.6,161.54,7.61643154]
[1730803508123,8.89983154,161.6,161.54,7.61643154]
[1730803508739,3.0959,161.58,161.55,3.0963]
[1730803509233,3.0959,161.58,161.54,10.71283154]
[1730803509435,3.0959,161.58,161.55,7.61643154]
[1730803510423,8.89983154,161.6,161.55,10.71263154]
[1730803511737,2.6955,161.65,161.55,7.61643154]
[1730803511937,2.6955,161.65,161.52,2.76]
[1730803511938,3.0956,161.6,161.57,7.61643154]
[1730803512128,7.61643154,161.62,161.57,7.61643154]
[1730803513127,3.0953,161.61,161.57,7.61643154]
[1730803513635,3.0953,161.61,161.57,10.71223154]
[1730803513933,3.0953,161.61,161.57,7.61643154]
[1730803514333,3.0954,161.6,161.57,10.71233154]
[1730803516735,3.0958,161.59,161.57,7.61643154]
[1730803516936,7.61643154,161.62,161.57,7.61643154]